bitfinex/quotes_SOLUSD_20240625
["timestamp","ask_amount","ask_price","bid_price","bid_amount"]
[1719282772425,100.0,132.7,132.66,23.2432]
[1719282773159,100.0,132.7,132.67,6.7833]
[1719282774535,100.0,132.72,132.68,16.9569]
[1719282774736,100.0,132.72,132.69,6.7822]
[1719282775444,100.0,132.74,132.7,6.782]
[1719282775642,100.0,132.74,132.71,6.7816]
[1719282775941,100.0,132.74,132.64,49.8511]
[1719282776265,100.0,132.71,132.66,16.9596]
[1719282776435,100.0,132.71,132.67,6.7836]
[1719282776752,100.0,132.71,132.68,6.7832]
[1719282777456,100.0,132.73,132.69,6.7826]
[1719282777656,100.0,132.73,132.66,16.9596]
[1719282778236,100.0,132.73,132.68,16.9572]
[1719282778844,100.0,132.73,132.69,6.7825]
[1719282779059,100.0,132.73,132.68,23.7403]
[1719282779246,100.0,132.7,132.67,6.7835]
[1719282779439,100.0,132.7,132.66,6.7842]
[1719282779953,100.0,132.7,132.68,6.7827]
[1719282780260,100.0,132.7,132.67,23.7417]
[1719282781036,100.0,132.73,132.69,16.9562]
[1719282781260,100.0,132.73,132.71,6.7816]
[1719282781471,100.0,132.73,132.72,6.7811]
[1719282781662,100.0,132.73,132.69,16.9562]
[1719282781857,100.0,132.73,132.69,23.7388]
[1719282782251,100.0,132.69,132.67,6.7835]
[1719282782642,100.0,132.73,132.68,6.7831]
[1719282783146,100.0,132.71,132.67,6.7836]
[1719282783849,100.0,132.69,132.65,6.7844]
[1719282784178,100.0,132.69,132.65,6.7847]
[1719282784354,100.0,132.69,132.64,15.9253]
[1719282784355,100.0,132.69,132.64,22.7104]
[1719282784552,100.0,132.67,132.64,22.7104]
[1719282784754,100.0,132.67,132.62,6.7861]
[1719282785058,100.0,132.63,132.59,23.7565]
[1719282785390,100.0,132.61,132.59,6.7877]
[1719282785673,100.0,132.61,132.56,16.9728]
[1719282785961,100.0,132.61,132.57,6.7887]
[1719282786169,100.0,132.61,132.56,23.7621]
[1719282786358,100.0,132.61,132.56,16.9728]
[1719282786559,100.0,132.61,132.52,21.9338]
[1719282786860,6.4179,132.62,132.52,6.7909]
[1719282786861,100.0,132.56,132.52,6.7909]
[1719282787074,100.0,132.58,132.52,16.9775]
[1719282787265,100.0,132.58,132.54,6.7899]
[1719282787451,100.0,132.56,132.53,6.7908]
[1719282787656,100.0,132.56,132.52,23.7688]
[1719282787971,100.0,132.56,132.52,16.9775]
[1719282788161,100.0,132.54,132.5,6.7921]
[1719282788362,100.0,132.54,132.49,23.4411]
[1719282788363,100.0,132.54,132.51,6.7916]
[1719282788667,100.0,132.56,132.53,6.7907]
[1719282788879,100.0,132.54,132.51,16.9787]
[1719282789166,100.0,132.54,132.49,6.7924]
[1719282789378,100.0,132.52,132.48,23.7769]
[1719282789539,100.0,132.52,132.48,6.7933]
[1719282789742,7.89223153,132.54,132.53,6.7909]
[1719282789947,100.0,132.54,132.52,16.9774]
[1719282790244,100.0,132.54,132.48,23.7759]
[1719282790444,100.0,132.54,132.48,16.9825]
[1719282790654,100.0,132.54,132.48,23.7757]
[1719282790844,100.0,132.52,132.47,6.7939]
[1719282791464,100.0,132.49,132.45,16.9872]
[1719282791663,100.0,132.49,132.46,6.7944]
[1719282791874,100.0,132.49,132.45,16.9872]
[1719282792097,13.2915,132.55,132.49,6.7929]
[1719282792098,100.0,132.51,132.49,6.7929]
[1719282792253,100.0,132.53,132.47,16.984]
[1719282792577,100.0,132.51,132.49,6.7929]
[1719282793077,100.0,132.51,132.47,16.984]
[1719282793078,100.0,132.51,132.47,23.7778]
[1719282793277,100.0,132.51,132.48,6.7934]
[1719282793493,100.0,132.49,132.44,16.9884]
[1719282793662,100.0,132.49,132.45,6.7945]
[1719282793863,100.0,132.49,132.44,23.7839]
[1719282794065,100.0,132.49,132.44,16.9884]
[1719282794259,100.0,132.51,132.48,6.7929]
[1719282794671,100.0,132.51,132.46,23.7793]
[1719282794875,100.0,132.51,132.46,16.9852]
[1719282795078,100.0,132.53,132.48,16.9827]
[1719282795277,100.0,132.55,132.48,16.9827]
[1719282795487,100.0,132.55,132.5,6.7923]
[1719282795800,23.22152918,132.57,132.54,6.7903]
[1719282795801,107.89089993,132.57,132.54,6.7903]
[1719282795968,100.0,132.57,132.55,6.7898]
[1719282796291,20.1633,132.59,132.55,6.7898]
[1719282796292,100.0,132.59,132.55,6.7898]
[1719282796498,8.84652684,132.61,132.55,16.9738]
[1719282796671,106.1807,132.62,132.55,16.9738]
[1719282797070,6.787,132.61,132.55,23.7635]
[1719282797266,100.0,132.6,132.55,16.9738]
[1719282797490,100.0,132.56,132.52,16.9781]
[1719282797671,100.0,132.59,132.52,16.9781]
[1719282797872,100.0,132.59,132.54,6.79]
[1719282798398,100.0,132.59,132.53,6.7907]
[1719282798694,100.0,132.59,132.54,6.7903]
[1719282799071,100.0,132.59,132.55,6.7898]
[1719282799767,100.0,132.59,132.54,23.7652]
[1719282800287,100.0,132.57,132.54,23.7652]
[1719282801318,100.0,132.57,132.55,6.7898]
[1719282801887,100.0,132.59,132.56,16.9727]
[1719282802094,100.0,132.61,132.56,16.9727]
[1719282802302,100.0,132.61,132.6,6.7873]
[1719282802695,100.0,132.61,132.59,6.7877]
[1719282803303,100.0,132.63,132.59,6.7877]
[1719282803608,100.0,132.63,132.56,6.0703]
[1719282803809,100.0,132.63,132.58,6.7879]
[1719282804009,100.0,132.65,132.56,6.0703]
[1719282804211,100.0,132.63,132.59,16.9686]
[1719282804507,100.0,132.65,132.59,23.756]
[1719282804703,100.0,132.61,132.59,16.9686]
[1719282804908,100.0,132.61,132.58,6.7882]
[1719282805295,100.0,132.61,132.58,6.7881]
[1719282805497,100.0,132.61,132.59,6.7877]
[1719282805807,100.0,132.61,132.6,6.7873]
[1719282806011,100.0,132.65,132.62,6.7862]
[1719282806708,100.0,132.65,132.6,16.9676]
[1719282807089,100.0,132.65,132.63,6.7856]
[1719282807698,13.20769759,132.69,132.64,16.962]
[1719282807699,100.0,132.68,132.64,16.962]
[1719282807907,100.0,132.7,132.65,6.7847]
[1719282808097,100.0,132.7,132.66,6.7842]
[1719282808812,100.0,132.7,132.67,6.7836]
[1719282809518,100.0,132.72,132.68,6.7832]
[1719282809722,100.0,132.72,132.67,6.7835]
[1719282810023,100.0,132.72,132.68,6.7831]
[1719282810425,100.0,132.72,132.69,6.7826]
[1719282810617,100.0,132.72,132.68,23.7404]
[1719282811297,100.0,132.72,132.69,6.7826]
[1719282811519,100.0,132.72,132.7,6.7822]
[1719282812821,100.0,132.74,132.7,6.7822]
[1719282813040,100.0,132.74,132.71,6.7816]
[1719282813241,100.0,132.76,132.72,16.952]
[1719282813527,100.0,132.78,132.73,6.7805]
[1719282813702,100.0,132.78,132.72,16.952]
[1719282813703,100.0,132.76,132.72,16.952]
[1719282814707,100.0,132.76,132.72,23.7329]
[1719282815425,100.0,132.76,132.75,6.7796]
[1719282815627,100.0,132.8,132.78,6.778]
[1719282815828,100.0,132.8,132.77,6.7785]
[1719282816325,100.0,132.82,132.78,6.7779]
[1719282816905,100.0,132.8,132.76,16.9469]
[1719282818611,100.0,132.76,132.73,16.9514]
[1719282818925,100.0,132.8,132.71,13.0357]
[1719282818926,100.0,132.74,132.71,13.0357]
[1719282819138,100.0,132.74,132.71,6.7812]
[1719282819330,100.0,132.76,132.7,16.9554]
[1719282819533,100.0,132.76,132.72,6.7811]
[1719282820043,100.0,132.74,132.71,6.7815]
[1719282820205,100.0,132.74,132.72,6.781]
[1719282820528,100.0,132.74,132.71,6.7816]
[1719282820932,100.0,132.76,132.72,6.7811]
[1719282821429,100.0,132.76,132.67,6.5294]
[1719282821430,100.0,132.78,132.74,6.78]
[1719282821633,100.0,132.78,132.73,16.9514]
[1719282821827,100.0,132.78,132.73,23.7319]
[1719282822005,100.0,132.76,132.73,16.9514]
[1719282822525,100.0,132.74,132.67,6.5294]
[1719282822727,100.0,132.72,132.7,16.9552]
[1719282822933,100.0,132.72,132.68,6.7827]
[1719282823633,100.0,132.7,132.65,15.5275]
[1719282823801,100.0,132.7,132.64,23.7479]
[1719282824006,6.7829,132.69,132.63,6.5266]
[1719282824234,100.0,132.68,132.63,6.5266]
[1719282824434,100.0,132.68,132.63,23.4899]
[1719282825238,100.0,132.68,132.66,6.7841]
[1719282825444,100.0,132.71,132.67,6.7837]
[1719282825445,200.0,132.71,132.67,6.7837]
[1719282825615,200.0,132.71,132.66,6.7842]
[1719282825816,100.0,132.67,132.65,16.961]
[1719282826009,100.0,132.67,132.63,6.7853]
[1719282826208,100.0,132.67,132.64,6.7848]
[1719282826435,100.0,132.69,132.64,6.7848]
[1719282826726,100.0,132.69,132.65,6.7846]
[1719282827430,200.0,132.71,132.64,16.962]
[1719282827631,200.0,132.71,132.65,6.7846]
[1719282827933,100.0,132.69,132.64,16.962]
[1719282828132,100.0,132.69,132.64,23.7472]
[1719282828524,100.0,132.66,132.64,23.7472]
[1719282831413,100.0,132.68,132.65,6.7847]
[1719282832345,100.0,132.68,132.64,16.962]
[1719282833938,100.0,132.68,132.64,23.7468]
[1719282834423,100.0,132.72,132.66,16.9595]
[1719282834744,100.0,132.69,132.66,16.9595]
[1719282835131,100.0,132.69,132.64,33.9263]
[1719282835132,100.0,132.71,132.69,6.7822]
[1719282835338,100.0,132.73,132.68,16.9569]
[1719282835535,100.0,132.73,132.69,6.7824]
[1719282836435,100.0,132.73,132.68,23.74]
[1719282837830,100.0,132.73,132.69,6.7825]
[1719282838326,100.0,132.7,132.68,16.9569]
[1719282839321,100.0,132.7,132.68,23.7397]
[1719282839535,100.0,132.7,132.68,23.7399]
[1719282839945,107.08449759,132.75,132.68,23.7399]
[1719282839946,100.0,132.73,132.69,6.7827]
[1719282840251,100.0,132.71,132.68,23.74]
[1719282840550,100.0,132.71,132.68,16.9569]
[1719282840748,100.0,132.71,132.68,23.7401]
[1719282840931,100.0,132.73,132.68,16.9569]
[1719282841441,100.0,132.7,132.67,6.1145]
[1719282841642,100.0,132.7,132.68,6.7832]
[1719282842861,100.0,132.7,132.67,6.7836]
[1719282843039,100.0,132.67,132.63,6.195]
[1719282843530,100.0,132.67,132.63,12.9804]
[1719282844035,100.0,132.64,132.62,23.7513]
[1719282844240,100.0,132.64,132.59,23.3839]
[1719282844449,100.0,132.64,132.62,6.7863]
[1719282844625,100.0,132.64,132.61,6.7867]
[1719282844832,100.0,132.64,132.59,30.1716]
[1719282845152,100.0,132.64,132.57,21.9207]
[1719282845153,100.0,132.61,132.57,21.9207]
[1719282845358,100.0,132.61,132.56,23.1421]
[1719282845552,100.0,132.61,132.58,23.7584]
[1719282845753,100.0,132.61,132.58,16.9702]
[1719282846250,8.19206953,132.64,132.61,6.7864]
[1719282846462,33.48,132.67,132.56,40.1156]
[1719282846463,200.0,132.67,132.56,40.1156]
[1719282846752,100.0,132.63,132.56,40.1156]
[1719282846948,100.0,132.61,132.56,6.169]
[1719282847157,100.0,132.61,132.58,6.7879]
[1719282847345,100.0,132.63,132.6,16.9675]
[1719282847552,100.0,132.65,132.61,6.7867]
[1719282847751,100.0,132.63,132.57,16.9718]
[1719282847929,100.0,132.61,132.57,23.7606]
[1719282848135,100.0,132.59,132.55,6.7897]
[1719282848378,100.0,132.59,132.56,6.7891]
[1719282848657,100.0,132.6,132.56,6.7888]
[1719282848851,100.0,132.6,132.55,16.9743]
[1719282849165,100.0,132.62,132.58,6.7883]
[1719282849326,100.0,132.59,132.57,23.76]
[1719282849530,100.0,132.59,132.57,16.9713]
[1719282849727,100.0,132.59,132.53,38.2901]
[1719282849941,100.0,132.59,132.57,6.7884]
[1719282850147,100.0,132.61,132.59,6.7876]
[1719282850343,100.0,132.64,132.6,6.7873]
[1719282850547,100.0,132.64,132.59,6.7876]
[1719282850745,100.0,132.64,132.53,21.3141]
[1719282850746,100.0,132.59,132.55,6.7896]
[1719282850955,100.0,132.59,132.53,21.3141]
[1719282851138,0.30479759,132.64,132.58,6.7883]
[1719282851139,100.0,132.61,132.58,6.7883]
[1719282852030,100.0,132.61,132.58,16.9703]
[1719282852359,100.0,132.59,132.55,16.974]
[1719282852555,100.0,132.59,132.53,21.3141]
[1719282852855,100.0,132.59,132.54,6.7899]
[1719282853053,100.0,132.57,132.55,6.7898]
[1719282853258,100.0,132.59,132.54,16.9753]
[1719282853473,100.0,132.59,132.57,23.7607]
[1719282853654,100.0,132.57,132.54,16.9754]
[1719282853956,100.0,132.57,132.54,23.7653]
[1719282854255,100.0,132.57,132.56,6.7893]
[1719282854759,100.0,132.57,132.54,16.9754]
[1719282855162,100.0,132.57,132.54,23.7655]
[1719282855351,100.0,132.57,132.54,16.9754]
[1719282855552,6.7879,132.59,132.52,6.7914]
[1719282855553,100.0,132.55,132.52,6.7914]
[1719282856060,100.0,132.55,132.53,6.7906]
[1719282857048,100.0,132.55,132.51,23.7712]
[1719282857259,100.0,132.55,132.51,16.9794]
[1719282858180,100.0,132.55,132.51,23.7709]
[1719282858954,100.0,132.53,132.48,16.9831]
[1719282859466,100.0,132.53,132.49,6.7925]
[1719282859660,100.0,132.53,132.48,16.9831]
[1719282859661,100.0,132.51,132.48,23.7764]
[1719282860253,100.0,132.51,132.46,6.7943]
[1719282860991,100.0,132.51,132.47,6.7938]
[1719282861553,33.48,132.56,132.45,16.9869]
[1719282861554,100.0,132.49,132.45,16.9869]
[1719282862881,100.30479759,132.51,132.47,6.7938]
[1719282863056,100.30479759,132.51,132.48,6.7933]
[1719282863257,100.30479759,132.51,132.47,23.7781]
[1719282863460,100.0,132.49,132.47,23.7781]
[1719282863655,100.0,132.49,132.45,6.7948]
[1719282864061,100.0,132.49,132.46,6.7944]
[1719282864865,100.0,132.49,132.45,6.7949]
[1719282865263,100.0,132.49,132.41,33.9853]
[1719282865264,100.0,132.46,132.43,6.7955]
[1719282865467,100.0,132.46,132.41,16.9922]
[1719282865468,100.0,132.46,132.41,23.7888]
[1719282865666,100.0,132.44,132.41,23.7888]
[1719282865881,100.0,132.44,132.41,16.9922]
[1719282866070,100.0,132.44,132.39,6.798]
[1719282866386,100.0,132.44,132.41,6.7966]
[1719282866687,100.0,132.45,132.42,16.9905]
[1719282866881,100.0,132.45,132.42,23.7868]
[1719282867062,100.0,132.45,132.42,16.9905]
[1719282867263,0.30479759,132.49,132.39,16.9949]
[1719282867264,100.0,132.43,132.39,16.9949]
[1719282867584,100.0,132.41,132.36,33.1328]
[1719282867772,100.0,132.41,132.38,6.7985]
[1719282867973,100.0,132.41,132.39,6.798]
[1719282868280,100.0,132.41,132.38,16.9958]
[1719282868500,100.0,132.41,132.36,6.7991]
[1719282869159,100.0,132.41,132.37,6.7988]
[1719282869359,100.0,132.39,132.35,16.9996]
[1719282869563,100.0,132.39,132.35,23.7992]
[1719282870072,100.0,132.39,132.35,16.9996]
[1719282871089,100.0,132.39,132.36,6.7992]
[1719282871585,100.0,132.41,132.32,50.309]
[1719282871770,100.0,132.41,132.37,16.9966]
[1719282872170,100.0,132.41,132.38,6.7984]
[1719282872381,100.0,132.41,132.39,6.7979]
[1719282872577,100.30479759,132.45,132.39,16.9941]
[1719282872786,0.30479759,132.45,132.42,6.7965]
[1719282873096,0.30479759,132.45,132.39,16.9941]
[1719282873097,100.0,132.44,132.4,6.7971]
[1719282873280,100.0,132.44,132.39,16.9941]
[1719282873675,100.0,132.44,132.41,6.797]
[1719282874078,100.0,132.44,132.4,6.7974]
[1719282874295,100.0,132.44,132.39,23.792]
[1719282875501,100.0,132.44,132.4,6.7975]
[1719282876112,100.0,132.44,132.42,6.7964]
[1719282876478,0.30479759,132.45,132.42,6.7964]
[1719282876987,0.30479759,132.45,132.41,23.7891]
[1719282877495,100.0,132.42,132.39,6.7977]
[1719282877693,100.0,132.4,132.35,22.0134]
[1719282877888,100.0,132.4,132.36,6.7995]
[1719282878083,100.0,132.4,132.36,6.7996]
[1719282878692,100.0,132.4,132.37,6.7991]
[1719282878901,100.0,132.43,132.39,6.7979]
[1719282879110,100.30479759,132.45,132.4,6.7975]
[1719282879289,100.30479759,132.45,132.41,6.7969]
[1719282880405,100.0,132.43,132.39,16.9947]
[1719282880616,100.0,132.43,132.39,23.7926]
[1719282881206,100.0,132.43,132.4,6.7974]
[1719282881907,100.61033562,132.45,132.41,6.7968]
[1719282882410,100.0,132.43,132.36,16.9984]
[1719282882605,100.0,132.41,132.36,16.9984]
[1719282882794,100.0,132.41,132.37,6.7987]
[1719282882993,100.0,132.41,132.38,6.7985]
[1719282883409,100.0,132.41,132.37,6.7989]
[1719282883716,100.0,132.39,132.36,23.7979]
[1719282884395,100.0,132.39,132.36,16.9984]
[1719282885302,100.0,132.39,132.36,23.7976]
[1719282887430,100.0,132.39,132.37,6.7989]
[1719282887835,100.0,132.39,132.36,23.7978]
[1719282888138,100.0,132.39,132.36,16.9984]
[1719282889733,100.0,132.39,132.36,23.7978]
[1719282893112,100.0,132.39,132.36,16.9984]
[1719282893318,100.0,132.39,132.37,6.799]
[1719282893515,100.0,132.39,132.36,23.7978]
[1719282894849,100.0,132.41,132.38,16.996]
[1719282895060,100.0,132.41,132.38,23.7944]
[1719282895430,100.0,132.41,132.39,6.798]
[1719282896246,100.0,132.41,132.38,16.996]
[1719282896849,100.0,132.41,132.37,6.7989]
[1719282897029,100.0,132.39,132.36,6.7995]
[1719282897543,100.0,132.36,132.32,32.1252]
[1719282897738,100.0,132.36,132.32,17.0034]
[1719282897927,100.0,132.36,132.32,23.8047]
[1719282898245,100.0,132.36,132.33,6.8011]
[1719282899751,100.0,132.36,132.34,6.8006]
[1719282900219,100.0,132.38,132.35,6.8001]
[1719282900641,100.0,132.38,132.37,6.7991]
[1719282900944,0.61033562,132.39,132.36,16.9987]
[1719282901330,100.0,132.38,132.36,16.9987]
[1719282901755,100.0,132.36,132.33,17.0022]
[1719282901956,100.0,132.34,132.31,6.802]
[1719282902646,100.0,132.32,132.31,6.802]
[1719282903438,100.0,132.32,132.3,17.0058]
[1719282903760,100.0,132.32,132.3,23.8083]
[1719282904128,100.0,132.34,132.3,17.0058]
[1719282904641,0.61033562,132.36,132.33,6.8009]
[1719282904837,0.61033562,132.36,132.33,6.8011]
[1719282905261,0.61033562,132.36,132.34,6.8005]
[1719282905558,0.61033562,132.36,132.33,6.8011]
[1719282905861,0.61033562,132.36,132.32,23.8052]
[1719282906082,0.61033562,132.36,132.32,17.0036]
[1719282906232,0.61033562,132.36,132.34,17.0012]
[1719282906432,120.5932,132.41,132.36,6.7996]
[1719282906660,129.43972684,132.41,132.37,6.799]
[1719282906855,137.33012626,132.41,132.37,6.799]
[1719282907063,129.43972684,132.41,132.37,6.799]
[1719282907361,129.43972684,132.41,132.36,6.7995]
[1719282907960,8.84652684,132.41,132.32,56.1796]
[1719282908162,8.84652684,132.41,132.35,33.9983]
[1719282908654,8.84652684,132.41,132.38,16.9958]
[1719282909163,100.0,132.47,132.41,16.9917]
[1719282909330,6.2238,132.48,132.43,6.7955]
[1719282909535,214.28739759,132.49,132.41,16.9917]
[1719282909536,214.59293562,132.49,132.41,16.9917]
[1719282909840,0.61033562,132.48,132.45,6.7949]
[1719282910045,0.61033562,132.48,132.45,16.9868]
[1719282910266,106.2238,132.52,132.45,16.9868]
[1719282910465,106.83413562,132.52,132.45,16.9868]
[1719282911060,100.61033562,132.52,132.47,16.9841]
[1719282911250,0.61033562,132.52,132.47,16.9841]
[1719282911442,0.61033562,132.52,132.46,15.7005]
[1719282911660,100.0,132.55,132.5,16.9809]
[1719282911983,100.0,132.53,132.5,16.9809]
[1719282912145,100.0,132.53,132.49,6.7924]
[1719282913642,100.0,132.53,132.5,6.7922]
[1719282914066,100.0,132.53,132.49,23.7745]
[1719282914461,100.0,132.53,132.5,6.7923]
[1719282914768,0.91587365,132.55,132.51,6.7917]
[1719282914966,100.0,132.54,132.49,23.7742]
[1719282915360,100.0,132.51,132.45,16.9864]
[1719282915564,100.0,132.49,132.45,23.7813]
[1719282916456,100.0,132.49,132.45,16.9864]
[1719282916658,100.0,132.51,132.45,16.9864]
[1719282916968,100.0,132.53,132.47,16.9843]
[1719282917269,100.0,132.53,132.49,6.7929]
[1719282917779,100.0,132.51,132.47,16.9843]
[1719282918472,100.0,132.49,132.44,16.9884]
[1719282918671,100.0,132.51,132.47,6.7939]
[1719282919481,100.0,132.53,132.46,16.985]
[1719282919691,100.0,132.53,132.49,6.7929]
[1719282919984,100.0,132.53,132.48,6.7934]
[1719282920567,100.0,132.51,132.46,23.7791]
[1719282921168,100.0,132.47,132.44,6.795]
[1719282921691,100.0,132.47,132.43,23.7859]
[1719282921862,100.0,132.47,132.42,22.6352]
[1719282922259,100.0,132.45,132.4,23.7904]
[1719282922479,106.7953,132.45,132.38,22.1083]
[1719282922666,100.0,132.43,132.38,22.1087]
[1719282922857,100.0,132.43,132.38,15.3102]
[1719282923259,100.0,132.43,132.39,6.798]
[1719282923571,100.0,132.43,132.37,29.9346]
[1719282923776,100.0,132.41,132.37,16.997]
[1719282924088,100.0,132.41,132.37,23.7956]
[1719282924578,100.0,132.41,132.38,6.7986]
[1719282924987,100.0,132.41,132.39,6.798]
[1719282925386,100.0,132.43,132.39,6.798]
[1719282925560,100.0,132.41,132.38,6.7984]
[1719282926278,100.0,132.43,132.37,16.997]
[1719282926469,100.0,132.45,132.41,6.7966]
[1719282926672,100.0,132.43,132.4,16.9937]
[1719282926878,100.0,132.41,132.37,16.997]
[1719282927391,100.0,132.43,132.39,6.798]
[1719282927887,100.0,132.43,132.4,6.7975]
[1719282928273,100.0,132.45,132.41,6.7968]
[1719282928483,0.91587365,132.46,132.41,6.7968]
[1719282928879,0.91587365,132.46,132.41,16.9921]
[1719282929992,7.93065319,132.48,132.44,6.7954]
[1719282930191,7.93065319,132.48,132.43,23.7854]
[1719282930402,100.0,132.46,132.43,16.9895]
[1719282930699,100.0,132.44,132.39,6.7976]
[1719282930880,100.0,132.44,132.38,23.1123]
[1719282930881,100.0,132.42,132.38,23.33]
[1719282931193,100.0,132.42,132.38,6.7985]
[1719282931492,100.0,132.44,132.4,6.7975]
[1719282931897,100.0,132.46,132.41,6.7969]
[1719282932480,100.0,132.46,132.42,6.7965]
[1719282932687,107.93065319,132.48,132.41,16.9919]
[1719282933384,107.93065319,132.48,132.43,16.9893]
[1719282933595,107.93065319,132.48,132.44,6.7954]
[1719282934111,107.93065319,132.48,132.43,23.7852]
[1719282934619,7.93065319,132.48,132.43,16.9893]
[1719282934779,113.4419,132.51,132.46,6.7944]
[1719282934980,100.0,132.49,132.46,6.7944]
[1719282935281,108.84652684,132.52,132.47,6.7938]
[1719282935485,108.84652684,132.52,132.43,33.978]
[1719282935786,115.63802684,132.52,132.47,16.9844]
[1719282938511,115.63802684,132.52,132.47,16.9844]
[1719282939683,100.0,132.47,132.42,13.2868]
[1719282940809,100.0,132.49,132.44,6.7955]
[1719282941913,100.0,132.49,132.45,16.9871]
[1719282945707,100.0,132.49,132.45,23.782]
[1719282945911,108.84652684,132.51,132.42,6.4903]
[1719282946094,108.84652684,132.51,132.48,6.7934]
[1719282946986,108.84652684,132.51,132.47,23.7783]
[1719282947191,108.84652684,132.51,132.48,6.7933]
[1719282947400,100.0,132.53,132.48,6.7933]
[1719282950802,106.791,132.53,132.47,23.7783]
[1719282951003,100.0,132.51,132.47,23.7783]
[1719282951508,100.0,132.49,132.44,16.9884]
[1719282951709,100.0,132.51,132.46,6.7944]
[1719282951908,6.7924,132.5,132.44,23.7835]
[1719282952313,100.0,132.49,132.45,6.7949]
[1719282952698,100.0,132.49,132.41,50.6196]
[1719282952699,100.0,132.45,132.41,33.6263]
[1719282952929,100.0,132.45,132.42,6.7964]
[1719282953088,100.0,132.45,132.41,40.4232]
[1719282953294,100.0,132.45,132.41,23.7885]
[1719282953492,100.0,132.47,132.41,16.9919]
[1719282953689,100.0,132.47,132.44,6.7955]
[1719282953907,37.31098881,132.48,132.43,6.796]
[1719282953908,100.0,132.45,132.43,6.796]
[1719282954108,100.0,132.45,132.42,6.7963]
[1719282954499,100.0,132.47,132.43,6.796]
[1719282955808,100.0,132.47,132.41,23.7884]
[1719282956227,100.0,132.47,132.42,6.7964]
[1719282956526,100.0,132.47,132.44,6.7954]
[1719282956711,100.0,132.47,132.41,16.9919]
[1719282956712,100.0,132.47,132.43,6.7958]
[1719282956911,100.0,132.47,132.42,6.7963]
[1719282957222,100.0,132.47,132.42,6.7964]
[1719282957620,106.794,132.47,132.42,6.7964]
[1719282957932,100.0,132.47,132.42,6.7964]
[1719282958929,100.0,132.45,132.41,16.9919]
[1719282959433,106.7951,132.45,132.39,6.7979]
[1719282959613,100.0,132.43,132.38,23.518]
[1719282959813,100.0,132.43,132.39,6.7979]
[1719282960031,100.0,132.43,132.38,23.518]
[1719282960032,100.0,132.45,132.4,6.7974]
[1719282962414,100.0,132.43,132.4,6.7974]
[1719282962614,100.0,132.43,132.38,23.518]
[1719282963056,100.0,132.45,132.38,23.518]
[1719282963222,100.0,132.45,132.4,16.9935]
[1719282963416,100.0,132.45,132.42,6.7964]
[1719282963618,100.0,132.45,132.42,23.7871]